bitfinex/quotes_SOLUSD_20250226
["timestamp","ask_amount","ask_price","bid_price","bid_amount"]
[1740604721814,81.963,135.19,135.09,0.2202]
[1740604721989,81.963,135.19,135.11,18.64964886]
[1740604722189,0.063,135.19,135.13,18.64964886]
[1740604722396,0.063,135.19,135.13,101.04964886]
[1740604722598,0.063,135.19,135.13,111.2232514]
[1740604722791,0.063,135.19,135.15,18.64964886]
[1740604722990,0.063,135.19,135.16,8.78]
[1740604723791,0.063,135.19,135.14,8.78]
[1740604724017,0.063,135.19,135.12,138.4645]
[1740604724018,81.9,135.18,135.12,1.6645]
[1740604724220,82.67690798,135.17,135.09,8.78]
[1740604724395,82.67690798,135.17,135.08,1.6645]
[1740604724396,81.9,135.16,135.08,1.6645]
[1740604725294,81.9,135.15,135.08,1.6645]
[1740604725810,81.9,135.15,135.09,18.64964886]
[1740604726602,81.9,135.15,135.08,1.6645]
[1740604727702,81.9,135.15,135.09,18.64964886]
[1740604728514,81.9,135.15,135.08,1.6645]
[1740604728896,81.9,135.14,135.08,1.6645]
[1740604729207,81.9,135.13,135.05,8.78]
[1740604729519,81.9,135.12,135.06,18.64964886]
[1740604729891,81.9,135.16,135.07,2.5541011]
[1740604730090,81.9,135.16,135.08,19.64964886]
[1740604730314,81.9,135.16,135.08,102.04964886]
[1740604730826,81.9,135.16,135.09,1.2202]
[1740604731003,0.063,135.19,135.1,21.40024886]
[1740604731004,81.963,135.19,135.1,21.40024886]
[1740604731191,81.963,135.19,135.12,18.64964886]
[1740604731393,0.063,135.19,135.12,101.04964886]
[1740604731715,0.063,135.19,135.15,19.64964886]
[1740604731921,0.063,135.19,135.15,102.04964886]
[1740604732125,0.063,135.19,135.15,103.60259949]
[1740604732426,0.063,135.19,135.15,101.54964886]
[1740604732591,0.063,135.19,135.15,100.54964886]
[1740604733497,0.063,135.19,135.14,6.2179]
[1740604733703,0.063,135.19,135.12,8.78]
[1740604733939,0.063,135.16,135.12,8.78]
[1740604737627,0.063,135.16,135.1,90.9414]
[1740604737826,0.063,135.16,135.11,27.42964886]
[1740604738420,0.063,135.16,135.12,18.64964886]
[1740604740919,0.063,135.16,135.11,9.78]
[1740604741126,0.063,135.16,135.11,29.98296993]
[1740604742439,0.063,135.16,135.12,19.86984886]
[1740604742629,0.063,135.16,135.15,18.64964886]
[1740604744045,0.063,135.16,135.12,82.4]
[1740604744247,0.063,135.16,135.11,8.76]
[1740604744545,0.063,135.16,135.1,89.9414]
[1740604744744,81.9,135.15,135.06,208.8181]
[1740604745037,81.9,135.14,135.08,18.64964886]
[1740604745833,0.063,135.16,135.09,1.2202]
[1740604746027,0.063,135.16,135.11,18.64964886]
[1740604746231,0.063,135.16,135.13,18.64964886]
[1740604746446,0.063,135.16,135.13,29.18307999]
[1740604746626,0.063,135.15,135.13,29.96287999]
[1740604747250,0.063,135.15,135.13,30.18307999]
[1740604747424,0.063,135.15,135.14,2.6099]
[1740604747624,0.063,135.15,135.14,21.47974886]
[1740604747946,0.063,135.16,135.15,42.14984886]
[1740604748244,0.063,135.19,135.18,18.64964886]
[1740604748450,0.063,135.19,135.15,82.4]
[1740604748621,0.063,135.19,135.15,83.4]
[1740604748824,0.063,135.19,135.15,82.4]
[1740604749133,0.063,135.19,135.16,8.76]
[1740604749449,88.3181,135.18,135.08,82.4]
[1740604749753,81.9,135.17,135.08,91.16]
[1740604750554,1.6136,135.15,135.06,124.84]
[1740604750730,81.9,135.14,135.06,124.84]
[1740604751051,81.9,135.13,135.06,124.84]
[1740604751946,100.54964886,135.12,135.06,124.84]
[1740604752144,81.9,135.11,135.03,8.79]
[1740604752340,81.9,135.1,135.03,8.79]
[1740604752550,81.9,135.1,135.03,0.03]
[1740604755650,6.4962,135.08,135.03,0.03]
[1740604755856,83.4085,135.07,135.03,0.03]
[1740604756041,101.32655684,135.06,135.03,0.03]
[1740604756228,107.43846803,135.06,135.03,0.03]
[1740604757159,88.78881917,135.06,135.03,0.03]
[1740604757338,18.64964886,135.04,135.03,0.03]
[1740604757540,81.9,135.03,135.0,9.59]
[1740604757850,81.9,135.02,135.0,9.59]
[1740604758665,125.71785094,135.06,135.0,9.59]
[1740604758956,81.9,135.05,135.0,9.59]
[1740604759152,101.32655684,135.04,135.0,9.59]
[1740604759353,6.061,135.01,135.0,7.9234]
[1740604759659,18.64964886,134.99,134.98,0.8687107]
[1740604759833,23.57216093,134.99,134.98,0.8687107]
[1740604760335,23.57216093,134.99,134.97,0.03]
[1740604760336,30.37007945,134.99,134.97,0.03]
[1740604760539,101.54964886,134.98,134.97,0.03]
[1740604760737,101.54964886,134.98,134.95,0.03]
[1740604760738,82.9,134.98,134.95,0.03]
[1740604760942,18.64964886,134.96,134.95,0.03]
[1740604761455,56.73585026,134.96,134.95,0.03]
[1740604761755,61.56746168,134.96,134.95,0.03]
[1740604762064,61.56746168,134.96,134.85,1.5639]
[1740604762247,92.43690798,134.95,134.85,1.5639]
[1740604762451,91.66,134.95,134.85,1.5639]
[1740604763155,91.66,134.99,134.86,1.55650074]
[1740604763334,18.64964886,134.97,134.85,1.5639]
[1740604763535,1.46291531,134.96,134.85,1.5639]
[1740604763846,82.9,134.95,134.85,1.5639]
[1740604764050,82.9,134.94,134.85,1.5639]
[1740604764243,82.9,134.98,134.89,8.76]
[1740604764659,82.9,134.98,134.9,18.64964886]
[1740604764865,82.9,134.97,134.89,8.76]
[1740604765057,82.9,134.97,134.89,9.76]
[1740604765260,82.9,134.97,134.89,8.76]
[1740604766257,82.9,134.97,134.88,83.2687107]
[1740604766645,82.9,134.97,134.89,8.76]
[1740604767044,82.9,134.96,134.89,8.76]
[1740604767947,82.9,134.95,134.89,8.76]
[1740604768348,82.9,134.98,134.89,91.16]
[1740604769047,82.9,134.97,134.89,8.76]
[1740604769657,82.9,134.97,134.89,91.16]
[1740604770041,82.9,134.96,134.89,8.76]
[1740604770240,82.9,134.95,134.88,0.8687107]
[1740604770463,82.9,134.95,134.88,0.8987107]
[1740604770841,102.32655684,134.94,134.88,0.8987107]
[1740604771040,55.81302693,134.92,134.88,0.8987107]
[1740604771249,121.10289648,134.91,134.88,0.8987107]
[1740604771667,120.3259885,134.91,134.88,0.8987107]
[1740604771866,82.9,134.9,134.88,0.8987107]
[1740604772176,82.9,134.89,134.88,0.8987107]
[1740604772353,37.16337807,134.92,134.88,0.8987107]
[1740604772559,82.9,134.91,134.88,0.8987107]
[1740604773778,82.9,134.91,134.89,1.6124]
[1740604773976,82.9,134.94,134.89,1.6124]
[1740604774778,82.9,134.98,134.9,6.5441]
[1740604774958,82.9,134.98,134.9,88.9441]
[1740604775466,82.9,134.97,134.89,1.6124]
[1740604776267,82.9,134.96,134.89,1.6124]
[1740604776874,82.9,134.95,134.89,1.6124]
[1740604777186,82.9,134.94,134.89,1.6124]
[1740604777659,82.9,134.98,134.89,1.6124]
[1740604777983,82.9,134.97,134.89,10.58176864]
[1740604778154,82.9,134.97,134.89,1.6124]
[1740604778985,82.9,134.96,134.89,1.6124]
[1740604779163,120.87172442,134.95,134.88,0.8987107]
[1740604779493,120.85079364,134.94,134.88,0.8987107]
[1740604780063,82.9,134.93,134.88,0.8987107]
[1740604780258,82.9,134.95,134.88,0.8987107]
[1740604781167,82.9,134.97,134.88,0.8987107]
[1740604781375,82.9,135.0,134.92,18.64964886]
[1740604781574,82.9,135.0,134.91,1.0]
[1740604781575,82.9,134.99,134.9,1.2202]
[1740604781772,87.95492208,134.99,134.89,1.5792]
[1740604782077,82.9,134.98,134.89,1.5792]
[1740604782284,0.063,134.97,134.89,1.5792]
[1740604782981,0.063,134.97,134.9,18.64964886]
[1740604783486,0.063,134.97,134.9,101.04964886]
[1740604783681,0.063,134.97,134.93,8.1601]
[1740604783985,82.9,135.03,134.96,18.64964886]
[1740604784164,82.9,135.03,134.96,102.04964886]
[1740604784490,82.9,135.02,134.94,8.76]
[1740604785182,82.9,135.01,134.94,8.76]
[1740604785774,82.9,135.01,134.95,18.64964886]
[1740604785982,82.9,135.01,134.94,8.76]
[1740604786788,82.9,135.01,134.95,18.64964886]
[1740604787486,82.9,135.01,134.94,8.76]
[1740604787685,7.39536296,135.06,134.94,8.76]
[1740604787686,82.9,135.0,134.94,8.76]
[1740604787989,38.48140608,135.03,134.94,8.76]
[1740604788176,82.9,135.02,134.94,8.76]
[1740604789668,82.9,135.02,134.95,18.64964886]
[1740604791701,82.9,135.01,134.94,8.76]
[1740604791872,82.9,135.0,134.93,8.1601]
[1740604793985,82.9,134.99,134.93,8.1601]
[1740604794190,82.9,134.99,134.93,1.6541]
[1740604797989,82.9,134.98,134.93,1.6541]
[1740604798289,82.9,134.97,134.93,1.6541]
[1740604800289,82.9,135.0,134.93,1.6541]
[1740604800487,82.9,135.0,134.93,84.0541]
[1740604800696,82.9,134.99,134.93,1.6541]
[1740604800872,82.9,134.98,134.93,1.6541]
[1740604801591,82.9,135.01,134.93,1.6541]
[1740604801770,82.9,135.0,134.93,1.6541]
[1740604801971,82.9,134.99,134.93,1.6541]
[1740604802264,82.9,134.98,134.93,1.6541]
[1740604802466,82.9,134.97,134.89,16.7692]
[1740604802684,83.67690798,134.96,134.89,1.589]
[1740604802970,82.9,134.95,134.89,1.589]
[1740604803277,82.9,134.94,134.89,1.589]
[1740604803679,5.05492208,134.97,134.89,1.589]
[1740604803892,0.063,135.06,134.99,8.0579]
[1740604804099,0.063,135.06,135.02,1.0]
[1740604804304,0.063,135.06,135.03,1.589]
[1740604804595,0.063,135.06,135.04,18.64964886]
[1740604804768,0.063,135.09,135.05,1.55431036]
[1740604804965,0.063,135.09,135.06,8.74]
[1740604805565,0.063,135.09,135.03,1.589]
[1740604806388,16.003,135.09,135.03,1.589]
[1740604806791,19.42655684,135.08,134.97,1.6277]
[1740604806984,18.64964886,135.06,134.97,1.6277]
[1740604807194,15.94,135.07,134.97,1.6277]
[1740604807494,9.51690798,135.08,134.81,0.1]
[1740604807495,20.21704886,135.04,134.81,0.1]
[1740604807701,18.64964886,135.0,134.81,0.1]
[1740604807876,18.64964886,134.97,134.81,0.1]
[1740604808077,18.64964886,134.95,134.81,0.1]
[1740604808281,18.64964886,134.93,134.81,0.1]
[1740604808478,17.76498611,134.92,134.81,0.1]
[1740604808711,15.94,134.91,134.81,0.1]
[1740604809012,17.76498611,134.9,134.81,0.1]
[1740604809192,15.94,134.94,134.85,124.98]
[1740604809505,6.0532,135.0,134.85,124.98]
[1740604809709,15.94,134.99,134.85,124.98]
[1740604810009,15.94,134.98,134.85,124.98]
[1740604810381,0.77690798,135.03,134.86,8.2369]
[1740604810587,15.94,135.05,134.88,18.64964886]
[1740604810899,15.94,135.06,134.91,0.2202]
[1740604811102,0.063,135.09,134.93,1.821]
[1740604811419,0.063,135.09,134.94,1.55507188]
[1740604811616,15.94,135.08,134.94,44.00742841]
[1740604811818,16.71690798,135.07,134.93,1.6008]
[1740604812109,18.15932849,135.07,134.95,133.74]
[1740604812446,7.56636633,135.09,134.96,20.20499858]
[1740604812589,7.56636633,135.09,134.97,0.2202]
[1740604812789,7.56636633,135.09,134.98,1.77490359]
[1740604812790,0.063,135.09,134.98,1.77490359]
[1740604813094,0.063,135.09,134.98,44.00706012]
[1740604813286,0.063,135.09,134.99,133.72]
[1740604813287,15.94,135.08,134.99,133.72]
[1740604813487,0.063,135.09,134.99,135.27505371]
[1740604813787,18.64964886,135.05,134.93,1.6008]
[1740604813981,18.64964886,135.05,134.89,124.98]
[1740604813982,18.64964886,135.03,134.89,124.98]
[1740604814188,55.92001789,135.01,134.89,124.98]
[1740604814384,1.523,134.98,134.84,0.03]
[1740604814599,18.64964886,134.95,134.84,0.03]
[1740604814804,18.64964886,134.93,134.79,0.03]
[1740604815016,18.64964886,134.91,134.79,0.03]
[1740604815296,17.5579687,134.9,134.79,0.03]
[1740604815501,15.94,134.89,134.79,0.03]
[1740604815794,15.94,134.88,134.79,0.03]
[1740604815994,15.94,134.93,134.8,8.9602]
[1740604816223,15.94,134.92,134.8,8.74]
[1740604816423,44.8389402,134.96,134.79,0.03]
[1740604816424,16.71690798,134.91,134.79,0.03]
[1740604816600,18.64964886,134.89,134.79,0.03]
[1740604816921,8.74,134.92,134.79,0.03]
[1740604816922,18.64964886,134.87,134.79,0.03]
[1740604817126,18.64964886,134.85,134.79,0.03]
[1740604817429,16.71690798,134.84,134.79,0.03]
[1740604817617,15.94,134.83,134.79,0.03]
[1740604818126,0.77690798,134.82,134.79,0.0001]
[1740604818322,18.64964886,134.81,134.8,0.03]
[1740604818503,82.9,134.82,134.8,0.03]
[1740604819529,82.9,134.86,134.8,0.03]
[1740604819900,82.9,134.85,134.8,0.03]
[1740604820118,102.32655684,134.84,134.8,0.03]
[1740604820301,82.9,134.83,134.8,0.03]
[1740604820711,102.32655684,134.82,134.79,0.0001]
[1740604820903,18.64964886,134.8,134.77,1.07e-05]
[1740604821220,33.10561454,134.82,134.77,1.07e-05]
[1740604821221,5.57658757,134.82,134.77,1.07e-05]
[1740604821422,82.9,134.83,134.77,1.07e-05]
[1740604821625,82.9,134.9,134.77,124.85236723]
[1740604821803,82.9,134.93,134.79,0.36236157]
[1740604822006,9.72269482,134.96,134.8,126.87700759]
[1740604822218,9.72269482,134.96,134.83,0.2202]
[1740604822398,0.063,134.98,134.85,0.36236157]
[1740604822602,0.063,134.98,134.9,0.2202]
[1740604822804,0.063,134.98,134.91,134.06]
[1740604823117,0.063,134.98,134.93,18.64964886]
[1740604823421,0.063,134.98,134.96,0.2202]
[1740604823740,0.063,134.98,134.96,8.98]
[1740604824223,0.063,135.09,134.97,1.77550225]
[1740604824528,0.063,135.09,134.97,44.22785878]
[1740604824705,0.063,135.09,134.98,18.86984886]
[1740604824907,0.063,135.09,134.99,1.5546651]
[1740604825328,0.063,135.09,134.96,10.587]
[1740604825517,92.62269482,135.08,134.96,1.607]
[1740604825727,92.62269482,135.08,134.97,134.1]
[1740604826229,83.67690798,135.07,134.97,134.1]
[1740604826530,9.78569482,135.09,134.98,1.55569069]
[1740604826725,2.20103712,135.07,134.97,134.1]
[1740604826929,0.063,135.09,134.99,0.2202]
[1740604827129,0.063,135.09,135.03,0.2202]
[1740604827466,0.063,135.09,135.04,29.24366614]
[1740604827823,0.063,135.09,135.04,29.46386614]
[1740604828341,0.063,135.09,135.04,29.24366614]
[1740604828551,0.063,135.12,135.08,0.2202]
[1740604828708,0.8687107,135.14,135.1,0.2202]
[1740604828913,0.8687107,135.14,135.13,0.2202]
[1740604829115,0.0708107,135.14,135.13,63.44376856]
[1740604829426,0.063,135.19,135.18,0.2202]
[1740604829616,88.912,135.37,135.19,19.154172]
[1740604829813,9.08,135.42,135.22,18.86984886]
[1740604830137,125.9087107,135.46,135.22,18.86984886]
[1740604830138,82.9,135.41,135.24,0.2202]
[1740604830335,2.21932849,135.38,135.27,0.2202]
[1740604830544,2.21932849,135.38,135.28,20.2009293]
[1740604831135,6.6397,135.43,135.28,1.55128044]
[1740604831346,9.72269482,135.32,135.25,9.12]
[1740604831543,3.27931868,135.46,135.28,0.2202]
[1740604831843,2.5024107,135.46,135.32,0.2202]
[1740604832018,0.8687107,135.46,135.32,196.9928935]
[1740604832218,0.8687107,135.46,135.34,0.2202]
[1740604832531,0.8687107,135.46,135.38,0.2202]
[1740604832747,0.8687107,135.46,135.4,0.2202]
[1740604833051,0.8687107,135.46,135.42,18.86984886]
[1740604833218,0.8687107,135.46,135.44,18.64964886]
[1740604833418,0.8687107,135.46,135.44,1.54953246]
[1740604833746,0.8687107,135.46,135.43,134.04]
[1740604833929,0.8687107,135.46,135.44,1.5497942]
[1740604834123,0.8687107,135.46,135.43,134.04]
[1740604834313,0.8687107,135.46,135.43,124.82]
[1740604834744,0.8687107,135.46,135.44,18.64964886]
[1740604834914,0.8687107,135.46,135.45,20.41946916]
[1740604835114,0.8687107,135.46,135.45,62.87182569]
[1740604835531,0.063,135.51,135.46,18.86984886]
[1740604835720,0.063,135.51,135.5,0.2202]
[1740604836063,0.063,135.51,135.5,20.4184366]
[1740604836223,0.063,135.51,135.5,20.1982366]
[1740604836543,0.063,135.51,135.5,20.4184366]
[1740604836736,0.063,135.51,135.48,1.54857759]
[1740604836917,0.063,135.51,135.48,1.76877759]
[1740604837231,0.8687107,135.57,135.54,0.2202]
[1740604837449,0.8687107,135.57,135.55,135.52802109]
[1740604837616,0.8687107,135.57,135.56,20.41826875]
[1740604837821,0.063,135.65,135.58,0.2202]
[1740604838050,0.063,135.65,135.59,1.54772764]
[1740604838252,0.063,135.65,135.6,0.2202]
[1740604838439,0.063,135.65,135.63,0.2202]
[1740604838621,0.063,135.65,135.64,29.49689451]
[1740604838940,0.063,135.65,135.64,10.84724565]
[1740604839144,0.063,135.65,135.64,9.3]
[1740604839318,0.063,135.65,135.64,10.84727722]
[1740604839829,0.063,135.65,135.64,11.06738755]
[1740604840033,0.1809107,135.67,135.66,0.2202]
[1740604840229,0.1809107,135.67,135.66,126.12666737]
[1740604840418,0.1809107,135.67,135.66,135.48666737]
[1740604840618,0.1809107,135.67,135.66,154.13631623]
[1740604840845,0.1809107,135.67,135.66,152.58964886]
[1740604841050,0.063,135.79,135.67,0.78884628]
[1740604841346,0.063,135.79,135.73,18.86984886]
[1740604841549,0.063,135.79,135.74,30.12001256]
[1740604841717,0.063,135.79,135.74,30.4043357]
[1740604841918,0.063,135.79,135.74,29.61548942]
[1740604842135,0.063,135.79,135.78,0.28432314]
[1740604842322,0.063,135.84,135.81,0.2202]
[1740604842524,0.063,135.84,135.83,0.2202]
[1740604842842,0.063,135.89,135.86,0.2202]
[1740604843144,0.063,135.97,135.88,19.154172]
[1740604843454,0.063,135.97,135.91,19.154172]
[1740604843630,0.063,135.97,135.91,20.76225224]
[1740604843826,0.063,135.97,135.94,0.2202]
[1740604844046,0.063,135.97,135.89,133.98]
[1740604844047,0.063,135.97,135.96,19.29633357]
[1740604844246,0.063,135.97,135.96,28.95849514]
[1740604844542,0.063,135.98,135.97,19.43849514]
[1740604844917,0.063,135.98,135.97,18.64964886]
[1740604845117,1.8687107,136.1,135.98,0.78884628]
[1740604845328,1.8687107,136.1,136.04,0.2202]
[1740604845538,1.8687107,136.1,136.06,18.64964886]
[1740604845732,1.8687107,136.1,136.06,18.86984886]
[1740604845928,1.8687107,136.1,136.07,0.42648471]
[1740604846131,1.8687107,136.1,136.06,18.64964886]
[1740604846334,1.8687107,136.1,136.07,0.28432314]
[1740604846522,1.8687107,136.1,136.09,8.13684628]
[1740604846727,1.6523,136.26,136.1,0.2202]
[1740604846949,1.6523,136.26,136.14,0.36236157]
[1740604847142,0.8687107,136.31,136.18,0.2202]
[1740604847450,0.3687107,136.2,136.19,153.31849514]
[1740604847855,0.8687107,136.31,136.22,0.14216157]
[1740604848024,0.8687107,136.31,136.27,0.56864628]
[1740604848230,1.5847,136.47,136.3,0.2202]
[1740604848437,1.5847,136.47,136.31,124.16]
[1740604848722,1.5847,136.47,136.31,124.3802]
[1740604848932,3.80402849,136.47,136.31,124.3802]
[1740604849136,3.80402849,136.47,136.32,9.56]
[1740604849345,1.5847,136.47,136.32,9.56]
[1740604849538,3.08803919,136.41,136.32,133.74]
[1740604849746,0.8687107,136.41,136.32,133.74]
[1740604850124,0.8687107,136.41,136.34,0.2202]
[1740604850453,0.8687107,136.41,136.34,18.86984886]
[1740604850630,0.8687107,136.41,136.37,0.56864628]
[1740604850827,0.8687107,136.41,136.4,0.36236157]
[1740604851028,0.8687107,136.41,136.38,10.0402]
[1740604851328,0.8687107,136.41,136.39,9.84]
[1740604851746,18.64964886,136.4,136.34,134.0]
[1740604852050,18.64964886,136.4,136.34,10.0]
[1740604852351,1.6528,136.39,136.33,124.0]
[1740604853456,18.64964886,136.38,136.33,124.0]
[1740604853750,1.6528,136.39,136.33,124.0]
[1740604854660,0.03,136.39,136.33,124.0]
[1740604855658,0.03,136.39,136.37,0.36236157]
[1740604855963,0.03,136.39,136.38,10.08]
[1740604859237,0.03,136.39,136.33,134.14]
[1740604859954,0.03,136.39,136.33,121.4787]
[1740604860145,0.03,136.39,136.19,0.2202]
[1740604860342,0.03,136.39,136.2,156.4202]
[1740604860556,0.03,136.39,136.3,0.2202]
[1740604860756,0.03,136.39,136.31,133.92]
[1740604860932,0.03,136.39,136.32,123.8]
[1740604862864,2.52358685,136.39,136.32,123.8]
[1740604863161,0.03,136.39,136.32,123.8]
[1740604864469,0.03,136.39,136.33,10.26]
[1740604864832,0.03,136.39,136.34,0.14216157]
[1740604865038,0.03,136.39,136.36,0.78884628]
[1740604865240,0.03,136.39,136.36,0.56864628]
[1740604865456,0.03,136.39,136.36,0.78884628]
[1740604865738,0.03,136.39,136.38,0.78884628]
[1740604866042,0.03,136.39,136.35,0.36236157]
[1740604866251,0.03,136.39,136.38,0.78884628]
[1740604866651,0.03,136.39,136.34,25.6708]
[1740604866652,0.03,136.45,136.43,0.2202]
[1740604866970,0.40982853,136.5,136.49,0.56864628]
[1740604867153,0.40982853,136.5,136.49,0.78884628]
[1740604867355,0.8687107,136.52,136.51,0.78884628]
[1740604867558,0.8687107,136.52,136.51,33.48884628]
[1740604867857,0.8687107,136.52,136.51,10.98864628]
[1740604868033,0.8687107,136.52,136.51,11.20884628]
[1740604868238,82.9,136.79,136.62,0.28432314]
[1740604868239,0.8488693,136.63,136.62,0.28432314]
[1740604868462,0.8488693,136.73,136.62,134.52432314]
[1740604868673,0.8488693,136.73,136.66,0.78884628]
[1740604868873,0.8488693,136.73,136.7,0.14216157]
[1740604869175,0.8488693,136.73,136.71,17.8547]
[1740604869355,0.8488693,136.73,136.72,0.56864628]
[1740604869548,225.54184549,136.82,136.73,0.2202]
[1740604869745,225.54184549,136.82,136.76,19.07613357]
[1740604870075,225.54184549,136.82,136.75,0.28432314]
[1740604870277,225.54184549,136.82,136.77,0.28432314]
[1740604870447,225.54184549,136.82,136.79,19.21829514]
[1740604870843,225.54184549,136.82,136.79,11.54668471]
[1740604871149,225.54184549,136.82,136.79,10.9]
[1740604871550,0.8488693,136.84,136.79,37.42869514]
[1740604871869,0.8488693,136.84,136.79,37.64889514]
[1740604872056,0.8488693,136.84,136.79,37.42869514]
[1740604872262,0.8488693,136.84,136.79,37.64889514]
[1740604872484,0.8488693,136.84,136.79,10.9]
[1740604873374,0.8488693,136.84,136.79,11.1202]
[1740604873574,0.8488693,136.84,136.79,18.21]
[1740604873780,0.8488693,136.94,136.85,0.2202]
[1740604873980,0.8488693,136.94,136.86,134.76]
[1740604874168,0.8488693,136.94,136.87,0.42648471]
[1740604874682,0.8488693,136.94,136.91,0.14216157]
[1740604874857,0.8488693,136.94,136.9,18.64964886]
[1740604875059,0.8488693,136.94,136.86,134.9802]
[1740604875271,0.8488693,136.94,136.91,0.28432314]
[1740604875468,0.8788693,136.94,136.87,7.3059]
[1740604875978,0.8788693,136.94,136.93,0.78884628]
[1740604876284,1.5082,137.13,136.97,0.42648471]
[1740604876468,1.5082,137.13,137.02,0.42648471]
[1740604876663,1.5082,137.13,136.98,123.38]
[1740604877678,0.8788693,137.05,136.98,123.38]
[1740604878088,18.64964886,137.04,136.98,123.38]
[1740604878290,18.64964886,137.04,136.9,135.2]
[1740604878589,0.8788693,137.05,136.93,0.2202]
[1740604878757,0.8788693,137.05,136.94,0.64668471]
[1740604879082,0.8788693,137.05,137.0,0.42648471]
[1740604879284,0.8788693,137.05,137.0,12.02]
[1740604880089,0.8788693,137.05,137.02,0.14216157]
[1740604880272,0.8788693,137.05,137.04,0.42648471]
[1740604880581,6.93e-05,137.05,137.04,19.43849514]
[1740604880767,0.8488693,137.16,137.08,0.78884628]
[1740604880971,0.8488693,137.16,137.12,0.14216157]
[1740604881183,0.8488693,137.16,137.1,25.5286]
[1740604881482,0.13621784,137.28,137.1,25.5286]
[1740604881483,0.13621784,137.28,137.1,7.2939]
[1740604881685,0.13621784,137.28,137.11,0.42648471]
[1740604881686,3.1948415,137.16,137.11,0.42648471]
[1740604881887,3.1948415,137.16,137.12,0.2202]
[1740604882185,3.1948415,137.16,137.11,0.42648471]
[1740604882386,3.1948415,137.16,137.13,0.2202]
[1740604882590,3.1948415,137.16,137.14,123.2]
[1740604883776,3.1948415,137.16,137.14,108.54650568]
[1740604884669,3.1948415,137.16,137.14,93.89301136]
[1740604884994,18.64964886,137.15,137.06,123.14]
[1740604885475,1.5628,137.14,137.06,123.14]
[1740604885671,6.1811,137.13,137.06,123.14]
[1740604885873,3.1948415,137.16,137.07,12.92]
[1740604886790,3.1948415,137.16,137.1,0.78884628]
[1740604887086,3.1948415,137.16,137.11,1.53001417]
[1740604887694,3.1948415,137.16,137.08,1.53011732]
[1740604888064,3.1948415,137.16,137.08,8.82481732]
[1740604888289,3.1948415,137.16,137.08,1.53011732]
[1740604888489,3.1948415,137.16,137.06,123.14]
[1740604888671,18.64964886,137.14,136.95,136.2]
[1740604888868,18.64964886,137.12,136.96,1.53217862]
[1740604889390,18.64964886,137.1,136.95,123.1]
[1740604889695,18.64964886,137.08,136.96,13.16]
[1740604889881,13.93690798,137.14,136.97,1.53223569]
[1740604890080,7.8106,137.15,136.97,1.53223569]
[1740604890483,18.64964886,137.14,136.97,1.53223569]
[1740604890792,7.8106,137.15,136.98,0.2202]
[1740604890969,7.8106,137.15,137.02,0.28432314]
[1740604891299,18.64964886,137.14,137.03,1.53091082]
[1740604891507,18.64964886,137.14,136.97,1.53167076]
[1740604892092,3.2248415,137.16,136.97,1.53167076]
[1740604892093,3.2248415,137.16,137.05,0.2202]
[1740604892297,3.2248415,137.16,137.06,136.68]
[1740604892481,3.2248415,137.16,137.07,1.53062299]
[1740604893203,3.2248415,137.16,137.08,7.295]
[1740604893389,3.2248415,137.16,137.09,1.53020786]
[1740604893586,3.2248415,137.16,137.12,0.2202]
[1740604893800,3.2248415,137.16,137.15,0.56864628]
[1740604894005,3.2248415,137.16,137.15,15.38948427]
[1740604894586,3.2248415,137.16,137.15,13.86]